Cogmind - Beta 13 @@@ ROGUE MODE // 2024.06.27 @ 18:31:16 Player: Sionnis Result: Destroyed by as-75556 with Assembled Blade Performance ------------- Evolutions (1) 500 Regions Visited (5) 1000 Robots Destroyed (94) 470 Value Destroyed (2047) 2047 Prototype IDs (30) 600 Alien Tech Used (0) 0 Bonus (79) 79 TOTAL SCORE: 4696 Bonus ------- Aligned with FarCom 300 Friendly Fire -221 Cogmind --------- Core Integrity 0/400 Matter 230/300 Energy 85/100 System Corruption 2% Temperature Cool (0) Movement Core (1600) Ox31 Location -9/Exiles Parts ------- > --- POWER (1) -------- (None) > --- PROPULSION (3) --- (None) > --- UTILITY (3) ------ Medium Storage Unit Huge Storage Unit Advanced Targeting Computer > --- WEAPON (2) ------- Grenade Launcher Katana > --- INVENTORY (25) --- Light Ion Engine Backup Power I Improved Ion Engine Light Nuclear Core Light Treads Light Treads Flight Unit Flight Unit Flight Unit Flight Unit Flight Unit High-capacity Matter Pod (200) Improved Signal Interpreter 0b10 Alert Chip Advanced Targeting Computer ECM Suite Medium Armor Plating Insulated Plating Hacking Suite Advanced Beam Cannon Advanced Beam Cannon Improved Assault Rifle Plasma Cutter Peak State ------------ > --- POWER ------------ Deuterium Engine > --- PROPULSION ------- Improved Treads Improved Treads Improved Treads > --- UTILITY ---------- Medium Storage Unit Huge Storage Unit Advanced Targeting Computer > --- WEAPON ----------- YOLO Cannon > --- INVENTORY -------- Light Ion Engine Backup Power I Improved Ion Engine Light Nuclear Core Light Treads Light Treads Flight Unit Flight Unit Flight Unit Flight Unit Flight Unit High-capacity Matter Pod Improved Signal Interpreter Advanced Targeting Computer ECM Suite Medium Armor Plating Insulated Plating Hacking Suite Advanced Beam Cannon Advanced Beam Cannon Improved Assault Rifle Grenade Launcher Grenade Launcher Plasma Cutter Katana [Rating: 38] Favorites ----------- Power Heavy Ion Engine Engine Heavy Ion Engine Propulsion Light Treads Treads Light Treads Utility Huge Storage Unit Device Improved Heat Sink Storage Huge Storage Unit Processor Advanced Targeting Computer Protection Light Armor Plating Weapon Assault Rifle Energy Gun Particle Gun Energy Cannon Advanced Beam Cannon Ballistic Gun Assault Rifle Ballistic Cannon Improved Light Cannon Launcher Grenade Launcher Special Weapon Mining Laser Slashing Weapon Katana Build | -11 -10 -10 -9 -9 -9 ------- Run | Yrd Mat Min Mat Min Exi Slots Evolved 2 | . . . 2 . . Power . | . . . . . . Propulsion 1 | . . . 1 . . Utility 1 | . . . 1 . . Weapon . | . . . . . . Parts Attached 81 | 6 11 2 48 9 5 Power 9 | 1 3 . 3 2 . Engine 9 | 1 3 . 3 2 . Core . | . . . . . . Reactor . | . . . . . . Propulsion 18 | 2 1 . 15 . . Treads 18 | 2 1 . 15 . . Leg . | . . . . . . Wheel . | . . . . . . Hover . | . . . . . . Flight . | . . . . . . Utility 23 | 1 4 . 16 2 . Device 3 | . . . 2 1 . Storage 6 | 1 3 . 1 1 . Processor 5 | . . . 5 . . Hackware . | . . . . . . Protection 9 | . 1 . 8 . . Artifact . | . . . . . . Weapon 31 | 2 3 2 14 5 5 Energy Gun 5 | . . 1 4 . . Energy Cannon 4 | . . . 2 1 1 Ballistic Gun 12 | 2 2 1 5 2 . Ballistic Cannon 2 | . . . 2 . . Launcher 3 | . . . . 1 2 Special Weapon 1 | . . . . 1 . Impact Weapon . | . . . . . . Slashing Weapon 4 | . 1 . 1 . 2 Piercing Weapon . | . . . . . . Special Melee Weapon . | . . . . . . Unidentified Prototypes 2 | . . . 2 . . Parts Lost 8 | . . 2 1 . 5 Power 1 | . . . . . 1 Propulsion 3 | . . . . . 3 Utility 2 | . . 1 1 . . Weapon 2 | . . 1 . . 1 Highest Loss Streak 5 | . . 2 1 . 5 To Critical Strikes . | . . . . . . Average Slot Usage (%) 96 | . 99 87 99 99 86 Engine 12 | . 14 14 11 11 10 Treads 31 | . 28 28 33 33 32 Device 1 | . . . 4 . . Storage 13 | . 14 14 11 17 22 Processor 4 | . . . 4 11 11 Protection 8 | . 13 2 12 4 . Energy Gun 2 | . . 11 3 . . Energy Cannon 4 | . . . 7 8 4 Ballistic Gun 14 | . 28 16 10 10 . Naked Turns . | . . . . . . Heaviest Build 117 | 11 92 92 105 106 117 Greatest Support 69 | 40 40 40 69 69 69 Greatest Overweight (x) 2 | . 2 2 1 1 1 Average Overweight (x) 1 | . 1 2 1 1 1 Largest Inventory Capacity 25 | 8 25 25 25 25 25 Average Capacity 24 | 6 21 25 25 25 25 Most Carried 25 | 3 23 24 25 25 25 Average Carried 22 | 1 15 23 24 24 24 Final Capacity 25 | 8 25 25 25 25 25 Final Carried 25 | 3 23 24 25 24 23 Class Distribution -------------------- 83% | Mutant 16% | Scavenger-Mutant Dominant Class ---------------- Mutant | -10/Materials Mutant | -10/Mines Mutant | -9/Materials Mutant | -9/Mines Mutant | -9/Exiles Resources | -11 -10 -10 -9 -9 -9 ----------- Run | Yrd Mat Min Mat Min Exi Matter Collected 2197 | 180 572 176 1012 257 . Remotely . | . . . . . . Salvage Created 3183 | . 529 186 2083 336 49 Parts 208 | . 37 15 141 15 . Haulers Intercepted 8 | . 2 . 6 . . Recyclers Shooed 6 | . 4 1 1 . . Parts Field Recycled . | . . . . . . Retrieved Matter . | . . . . . . Parts Self-Destructed . | . . . . . . Prevented . | . . . . . . Kills | -11 -10 -10 -9 -9 -9 ------- Run | Yrd Mat Min Mat Min Exi Combat Hostiles Destroyed 74 | . 12 8 37 15 2 Guns 51 | . 12 8 25 6 . Cannons 14 | . . . 11 3 . AOE 8 | . . . . 6 2 Classes Destroyed 14 | . 7 . 5 1 1 Worker 5 | . 1 . 2 2 . Builder 2 | . . . 2 . . Hauler 8 | . 2 . 6 . . Recycler 3 | . . . 2 1 . Mechanic 2 | . 1 . 1 . . Operator 3 | . 1 . 2 . . Turret 1 | . . . . . 1 Watcher 6 | . 1 . 5 . . Swarmer 24 | . 6 6 9 3 . Grunt 29 | . 6 2 16 5 . Brawler 1 | . . . 1 . . Duelist 1 | . . . 1 . . Sentry 10 | . . . 10 . . Assembled 9 | . . . . 7 2 Best Kill Streak 6 | . 4 3 6 6 3 Combat Bots Only 5 | . 3 3 4 5 2 Max Kills in Single Turn 4 | . 1 2 2 4 1 Gunslinging 1 | . . 1 1 . . Exploded 3 | . . . . 3 1 Melee . | . . . . . . Uniques/NPCs Destroyed . | . . . . . . Combat | -11 -10 -10 -9 -9 -9 -------- Run | Yrd Mat Min Mat Min Exi Hostile Shots Fired 265 | . 57 22 109 47 30 Missed 67 | . 20 . 29 11 7 Damage Taken 2772 | . 372 238 1018 445 699 Core 488 | . 58 18 133 33 246 Absorbed by Shields . | . . . . . . Regen/Repaired (Parts) 117 | . . . 117 . . Core Remaining (%) 84 | 100 . 69 . . . Volleys Fired 220 | . 65 17 113 22 3 Largest 2 | . 2 2 2 2 1 Hottest 98 | . 40 85 95 98 30 Shots Fired 430 | . 129 34 223 41 3 Gun 352 | . 129 34 171 18 . Cannon 68 | . . . 52 16 . Launcher 10 | . . . . 7 3 Special . | . . . . . . Kinetic 289 | . 129 32 110 18 . Thermal 131 | . . 2 113 16 . Explosive 10 | . . . . 7 3 Electromagnetic . | . . . . . . Robot Hit Streak 24 | . 6 6 22 24 3 Robot Miss Streak 5 | . 4 2 5 1 . Penetration Max . | . . . . . . Secondary Targets 5 | . . 2 3 . . Max Gunslinging Chain 1 | . . 1 1 . . Shots Hit Robots 289 | . 74 21 149 33 12 Core Hits 142 | . 29 11 67 25 10 Critical Kills 3 | . . . 3 . . Critical Parts Destroyed 2 | . 1 . 1 . . Critical Strikes 7 | . 1 . 6 . . Burn 2 | . . . 2 . . Meltdown 2 | . . . 2 . . Destroy 3 | . 1 . 2 . . Melee Attacks 11 | . . . 1 . 10 Impact . | . . . . . . Slashing 11 | . . . 1 . 10 Piercing . | . . . . . . Sneak Attacks 2 | . . . . . 2 Combat Hostiles . | . . . . . . Follow-up Attacks . | . . . . . . Damage Inflicted 5490 | . 891 286 2689 1034 590 Guns 3193 | . 864 274 1836 219 . Cannons 1080 | . . . 801 279 . Explosions 741 | . . . . 536 205 Melee 385 | . . . . . 385 Ramming 91 | . 27 12 52 . . Kinetic 2410 | . 864 256 1071 219 . Thermal 1863 | . . 18 1566 279 . Explosive 741 | . . . . 536 205 Electromagnetic . | . . . . . . Impact . | . . . . . . Slashing 385 | . . . . . 385 Piercing . | . . . . . . Highest Corruption 2 | . 1 1 1 1 2 Average Corruption 1 | . 1 1 1 1 1 Corruption Purged . | . . . . . . Corruption Blocked . | . . . . . . Effects 71 | . 19 15 17 13 7 Message Errors 15 | . 3 3 5 4 . Matter Fused 18 | . 5 4 4 3 2 Heat Flow Errors 11 | . 1 3 1 3 3 Energy Discharges 9 | . 4 2 2 . 1 Parts Rejected 2 | . 1 . 1 . . Data Loss (minor) 5 | . 1 . 2 1 1 Data Loss (major) 6 | . 2 3 1 . . Misfires 2 | . . . 1 1 . Alerts 2 | . 1 . . 1 . Weapon Failures 1 | . 1 . . . . Overload Shots . | . . . . . . Overflow Damage 26 | . . . 17 9 . Projectiles 26 | . . . 17 9 . Explosions . | . . . . . . Melee . | . . . . . . Knockbacks 2 | . 1 . 1 . . Impact 1 | . 1 . . . . Kinetic 1 | . . . 1 . . Secondary . | . . . . . . Self-Inflicted Damage 34 | . . . . 34 . Shots 1 | . . . . 1 . Rammed 10 | . 4 1 5 . . Targets Rammed 10 | . 4 1 5 . . Kicked . | . . . . . . Crushed . | . . . . . . Highest Temperature 253 | . 137 205 239 174 253 Average Temperature 61 | . 26 67 61 54 118 Received Heat Transfer 756 | . 147 72 324 204 9 Effects 1 | . . . . . 1 Interference 1 | . . . . . 1 Siege Activations . | . . . . . . Robots Corrupted . | . . . . . . Combat Hostiles . | . . . . . . Parts Fried . | . . . . . . Impact Corruptions . | . . . . . . Robots Melted 2 | . . . 2 . . Combat Hostiles 1 | . . . 1 . . Parts Melted 4 | . . . 4 . . Heat Transferred 3811 | . . 37 3293 481 . Parts Sabotaged . | . . . . . . Parts Stolen . | . . . . . . Parts Stripped . | . . . . . . Power Chain Reactions . | . . . . . . Alert | -11 -10 -10 -9 -9 -9 ------- Run | Yrd Mat Min Mat Min Exi Peak Influence 300 | . 165 100 300 140 . Initial 90 | . . . . 90 . Average 85 | . 42 38 130 75 . Maximum Alert Level 1 | . . . 1 . . Low Security (%) 87 | 100 100 100 72 100 . Level 1 12 | . . . 27 . . Level 2 . | . . . . . . Level 3 . | . . . . . . Level 4 . | . . . . . . Level 5 . | . . . . . . High Security . | . . . . . . Max Security . | . . . . . . Squads Dispatched 9 | . 2 . 6 1 . Investigation 4 | . 1 . 3 . . Extermination . | . . . . . . Reinforcement 5 | . 1 . 3 1 . Assault . | . . . . . . Garrison . | . . . . . . Intercept . | . . . . . . Searches Triggered . | . . . . . . Construction Impeded 1 | . . . . 1 . Haulers Reinforced . | . . . . . . Active Scanning Responses . | . . . . . . Cargo Convoy Interrupts . | . . . . . . Stealth | -11 -10 -10 -9 -9 -9 --------- Run | Yrd Mat Min Mat Min Exi Distress Signals 7 | . 2 . 5 . . Communications Jammed . | . . . . . . Distress Signals . | . . . . . . Times Spotted 127 | . 29 6 56 15 21 Peak Tracking Total 11 | . 3 2 4 5 11 Tactical Retreats 5 | . 1 . 2 . 2 Traps | -11 -10 -10 -9 -9 -9 ------- Run | Yrd Mat Min Mat Min Exi Traps Triggered 2 | . 1 . 1 . . Indirectly . | . . . . . . Trap Hack Attempts . | . . . . . . Triggered . | . . . . . . Disarmed . | . . . . . . Reprogrammed . | . . . . . . Reused . | . . . . . . Traps Extracted . | . . . . . . Installed . | . . . . . . Triggered . | . . . . . . Machines | -11 -10 -10 -9 -9 -9 ---------- Run | Yrd Mat Min Mat Min Exi Machines Disabled 4 | . . . 3 . 1 Max in Single Turn 1 | . . . 1 . 1 Machines Repaired . | . . . . . . Machines Dismantled . | . . . . . . Machines Sabotaged . | . . . . . . Overloaded Fab Kills . | . . . . . . Hacking | -11 -10 -10 -9 -9 -9 --------- Run | Yrd Mat Min Mat Min Exi Machines Accessed 27 | . 10 . 15 . 2 Terminals 16 | . 7 . 9 . . Fabricators . | . . . . . . Repair Stations 3 | . 1 . 2 . . Recycling Units 4 | . 2 . 2 . . Scanalyzers 2 | . . . 2 . . Garrison Access . | . . . . . . Total Hacks 88 | . 33 . 53 . 2 Successful 53 | . 16 . 35 . 2 Failed 35 | . 17 . 18 . . Catastrophic 5 | . 2 . 3 . . Database Lockouts . | . . . . . . Manual 32 | . 15 . 16 . 1 Terminals 57 | . 25 . 32 . . Fabricators . | . . . . . . Repair Stations 11 | . 5 . 6 . . Recycling Units 6 | . 3 . 3 . . Scanalyzers 12 | . . . 12 . . Garrison Access . | . . . . . . Terminal Hacks 25 | . 9 . 14 . 2 Record 1 | . . . . . 1 Part Schematic 2 | . 1 . 1 . . Robot Analysis 3 | . . . 3 . . Prototype ID Bank 3 | . 1 . 2 . . Branch Access Points 1 | . . . 1 . . Emergency Access Points 1 | . 1 . . . . Alert Level 2 | . . . 2 . . Unreport Threat 5 | . 2 . 3 . . Locate Traps 1 | . . . 1 . . Hauler Manifests 3 | . 2 . 1 . . Registered Prototypes 1 | . 1 . . . . Zone Layout 1 | . 1 . . . . Derelict Proto ID Bank 1 | . . . . . 1 Fabricator Hacks . | . . . . . . Repair Station Hacks 8 | . 2 . 6 . . Scan Component 3 | . . . 3 . . Repair 3 | . . . 3 . . Refit 2 | . 2 . . . . Recycling Unit Hacks 3 | . 2 . 1 . . Retrieve Components 3 | . 2 . 1 . . Scanalyzer 12 | . . . 12 . . Insert Component 6 | . . . 6 . . Analyze 6 | . . . 6 . . Garrison Access Hacks . | . . . . . . Unauthorized Hacks 5 | . 3 . 2 . . Terminals 5 | . 3 . 2 . . Botnet 4 | . 2 . 2 . . Operators 1 | . 1 . . . . Fabricators . | . . . . . . Repair Stations . | . . . . . . Recycling Units . | . . . . . . Scanalyzers . | . . . . . . Garrison Access . | . . . . . . Data Cores Recovered 1 | . . . 1 . . Used 1 | . . . 1 . . Hacking Detections 23 | . 10 . 13 . . Full Trace Events 5 | . 1 . 4 . . Feedback Events 2 | . 1 . 1 . . Corruption 2 | . 1 . 1 . . Feedback Blocked . | . . . . . . Robot Schematics Acquired . | . . . . . . Robots Built . | . . . . . . Authchips . | . . . . . . Time . | . . . . . . Total Robot Build Rating . | . . . . . . Part Schematics Acquired 8 | . 1 . 7 . . Parts Built . | . . . . . . Authchips . | . . . . . . Time . | . . . . . . Total Part Build Rating . | . . . . . . Parts Repaired 3 | . . . 3 . . Time 108 | . . . 108 . . Parts Recycled . | . . . . . . Recycled Matter . | . . . . . . Retrieved Matter . | . . . . . . Retrieved Components 26 | . 16 . 10 . . Parts Scanalyzed 6 | . . . 6 . . Part Schematics Acquired 6 | . . . 6 . . Parts Damaged . | . . . . . . Bothacking | -11 -10 -10 -9 -9 -9 ------------ Run | Yrd Mat Min Mat Min Exi Used RIF Installer . | . . . . . . Robots Hacked . | . . . . . . Non-combat . | . . . . . . Combat . | . . . . . . Robot Hacks Applied . | . . . . . . Relay Couplers Released . | . . . . . . Fabnet Peak Effective % . | . . . . . . Robots Rewired . | . . . . . . Allies Hacked . | . . . . . . Hacks Repelled . | . . . . . . Allies | -11 -10 -10 -9 -9 -9 -------- Run | Yrd Mat Min Mat Min Exi Total Allies 3 | . . . . 3 . Largest Group 3 | . . . . 3 3 Highest-Rated Group 40 | . . . . 40 40 Highest-Rated Ally 16 | . . . . 16 16 Total Orders . | . . . . . . Ally Attacks 19 | . . . . . 19 Total Damage 199 | . . . . . 199 Kills 1 | . . . . . 1 Allies Corrupted . | . . . . . . Allies Melted . | . . . . . . Intel | -11 -10 -10 -9 -9 -9 ------- Run | Yrd Mat Min Mat Min Exi Robot Analysis Total 3 | . . . 3 . . Derelict Logs Recovered 2 | . . 1 . 1 . Drone Launches . | . . . . . . Drone Recoveries . | . . . . . . Exploration | -11 -10 -10 -9 -9 -9 ------------- Run | Yrd Mat Min Mat Min Exi Turns Passed 10070 | 61 2281 1359 4082 1400 887 Spaces Moved 3529 | 35 757 406 1434 544 353 Core 5 | 5 . . . . . Treads 3524 | 30 757 406 1434 544 353 Legs . | . . . . . . Wheels . | . . . . . . Hover . | . . . . . . Flight . | . . . . . . Fastest Speed 50 | 50 160 320 240 240 240 Average Speed 253 | 144 265 320 240 240 240 Slowest Speed 320 | 160 320 320 240 240 240 Overloaded Moves . | . . . . . . Propulsion Burnouts . | . . . . . . Robots Hopped . | . . . . . . Cave-ins Triggered . | . . . . . . Exploration Rate (%) 73 | 4 99 87 98 100 55 Regions Visited 5 Branch Regions 3 Pre-discovered Areas 2 | . . 1 . . 1 Known Exits Taken 1 | . . . 1 . . Unknown Exits Taken 4 | 1 1 1 . 1 . Scrap Searched 3 | . . 2 . 1 . Spaces Dug 1 | . . . 1 . . Terrain Destroyed 29 | . . . 1 28 . Melee 1 | . . . 1 . . Projectile . | . . . . . . AOE 28 | . . . . 28 . Terrain Rammed . | . . . . . . Walls Destroyed . | . . . . . . Machines Disabled . | . . . . . . Actions | -11 -10 -10 -9 -9 -9 --------- Run | Yrd Mat Min Mat Min Exi Total 4204 | 43 902 431 1850 600 378 Wait 225 | . 25 4 180 15 1 Move 3524 | 34 756 405 1433 543 353 Hop . | . . . . . . Pick Up 56 | 3 26 1 23 2 1 Fast Attach 40 | 6 5 1 23 4 1 Attach 12 | . 1 1 4 2 4 Detach 10 | . 2 1 2 2 3 Swap 29 | . 5 . 21 3 . Drop 67 | . 13 . 45 7 2 Fire 220 | . 65 17 113 22 3 Melee 11 | . . . 1 . 10 Ram . | . . . . . . Kick . | . . . . . . Crush 10 | . 4 1 5 . . Escape Stasis . | . . . . . . Rewire . | . . . . . . Trap . | . . . . . . Miscellaneous . | . . . . . . Route ------- -11/Scrapyard -10/Materials (discovered 4 exits: *Mat x3 / [*Min]) -10/Mines (discovered 2 exits: *Mat x2) -9/Materials (discovered 4 exits: [*Mat x3] / *Min) -9/Mines (discovered 3 exits: [*Mat x2] / *Exi) -9/Exiles History --------- Turn | Location | Event 10 | -11/Scrapyard | Discovered new exit (range 16) 62 | -11/Scrapyard | Entered Materials 313 | -10/Materials | Build established: Mutant 398 | -10/Materials | Discovered new exit (range 10) 634 | -10/Materials | Discovered new exit (range 14) 886 | -10/Materials | Discovered new exit (range 15) 1762 | -10/Materials | Discovered new exit (range 16) 2343 | -10/Materials | Entered Mines 2351 | -10/Mines | Met a Derelict bent on vengeance 2982 | -10/Mines | Discovered new exit (range 12) 3395 | -10/Mines | Learned location of Storage (-7) 3570 | -10/Mines | Discovered new exit (range 9) 3702 | -10/Mines | Entered Materials 3702 | -9/Materials | Evolved 2 slots: Propulsion x1, Utility x1 4087 | -9/Materials | Build established: Scavenger-Mutant 5257 | -9/Materials | Discovered new exit (range 10) 5438 | -9/Materials | Repaired Lgt. Nuclear Core 5486 | -9/Materials | Repaired Katana 5593 | -9/Materials | Identified exit to Mines 5854 | -9/Materials | Build established: Mutant 6340 | -9/Materials | Discovered new exit (range 3) 7188 | -9/Materials | Discovered new exit (range 16) 7395 | -9/Materials | Repaired Med. Armor Plating 7784 | -9/Materials | Entered Mines 7815 | -9/Mines | Discovered new exit (range 7) 7941 | -9/Mines | Assembled infested the area 8494 | -9/Mines | Discovered new exit (range 11) 8934 | -9/Mines | Assisted by bots powering up and referring to "LRC-V3" 9040 | -9/Mines | Learned Materials emergency access door positions 9170 | -9/Mines | Deemed a non-threat by the Exiles lab entrance 9170 | -9/Mines | Discovered new exit (range 5) 9184 | -9/Mines | Entered Exiles 9184 | -9/Exiles | Accompanied by 3 allies 9244 | -9/Exiles | Met 8R-AWN 9285 | -9/Exiles | Met EX-HEX 9354 | -9/Exiles | Met EX-BIN 9381 | -9/Exiles | Aligned with FarCom system 9383 | -9/Exiles | Given EX-Vault access code 9443 | -9/Exiles | Opened EX-Vault 9466 | -9/Exiles | Found YOLO Cannon 9518 | -9/Exiles | Warned to stay clear of 0b10 Research branches 9875 | -9/Exiles | Found 0b10 Alert Chip 9994 | -9/Exiles | Met EX-DEC 10008 | -9/Exiles | Learned location of Zion (-7) 10041 | -9/Exiles | Attacked by the Exiles 10046 | -9/Exiles | Core integrity fell below 50% 10067 | -9/Exiles | Core integrity fell below 20% 10071 | -9/Exiles | Destroyed by as-75556 with Assembled Blade Last Messages --------------- Defensive protocols time, folks! Machine disabled. EC-UG8(z) destroyed. Sneak attack on EX-DEC. EX-DEC: "Let's see what this bad boy can do..." EX-DEC deploys DAS Turret. Trooper 2b destroyed. Imp. Treads destroyed. Deuterium Engine destroyed. EX-BIN: "I just want to science!" as-00686 destroyed. Machine disabled. as-65871 destroyed. Trooper 2a knocked back. Trooper 2a destroyed. Grenade Launcher destroyed. Mercenary 2a destroyed. DAS Turret destroyed. Imp. Treads destroyed. as-78877 destroyed. Map ----- +----------------------------------------------------+ | ????????????????????????????????????????????#" | | ????????????????????????????????#???????????#" | | ??????????????????????????????? """????????#" | | ???????????????????????????????" """#???????## | | ???????????????????????????????" #????????# | | ??????????????????????????????"" #????????#" | | ??????????????????????????????"" "#????????#" | | ?????????????????????????????? ""?????????#" | | ?????????????????##????????????" "?????????##" | | ???????????????? #???????????# #????????##"" | | ???????????????? #####????### ###?######"" | | ??????????????? """#####X# #"###""""""" | | ??????????????? """""" " "" | | ???????????????# "" """ " | | ????????????????# " " | | ?????????????????## | | ??????????????????### | | ????????????????????## | | ?????????????????????## | | ??????????????????????##" | | ???????????????????????#""" """""" | | ??????????????????????##" ######"" | | ??????????????????????#"" ""##????### | | ?????????????????????##"" """##???????? | | ?????????????????????#" %% ""##????????? | | ?????????????????????#""%@* =% "#?????????? | | ?????????????????????#"" =a =*##?????????? | | ?????????????????????#""" % a #????????" | | ?????????????????????#"" a ???????"" | | ?????????????????????## " % % ?????? | | ??????????????????????#""""=%[ a ?????? | | ??????????????????????## % ??????? | | ???????????????????????#" ??????? | | ???????????????????????#"""" ???????? # | | ????????????????????????"" ??????????? | | ????????????????????????" ???????????? | | ??????????????????????????" ????????????? | | ???????????????????????????? ??????????????? | | ???????????????????????????? ????????????????? | | ????????????????????????????? ???????????????????? | | ?????????????????????????????????????????????????? | | ?????????????????????????????????????????????????? | | ?????????????????????????????????????????????????? | | ?????????????????????????????????????????????????? | | ?????????????????????????????????????????????????? | | ?????????????????????????????????????????????????? | | ?????????????????????????????????????????????????? | | ?????????????????????????????????????????????????? | | ?????????????????????????????????????????????????? | | ?????????????????????????????????????????????????? | +----------------------------------------------------+ Best States ------------- Heat Dissipation 52 Energy Generation 10 Energy Capacity 280 Matter Stores 300 Matter Capacity 300 Sight Range 16 Terrain Scan Density 10 Armor Coverage 375 Resistance: EM 15 Evasion (%) 40 Targeting Accuracy 14 Recoil Reduction 3 Item Schematics ----------------- ECM Suite | -10/Materials | Hacked Flight Unit | -9/Materials | Scanalyzed Machine Analyzer | -9/Materials | Scanalyzed Mni. Grenade Launcher | -9/Materials | Hacked Katana | -9/Materials | Scanalyzed Plasma Cutter | -9/Materials | Scanalyzed Imp. Signal Interpreter | -9/Materials | Scanalyzed Hacking Suite | -9/Materials | Scanalyzed Robot Schematics ------------------ None Fabricated ------------ Nothing Alien Tech Used ----------------- None Achievements -------------- None Challenges ------------ None Game ------ Seed ShadingGrenadeHammer Manual? 0 Play Time 00:40:41 Cumulative 210.3 hours Start 2024.06.27 @ 17:47:35 End 2024.06.27 @ 18:31:16 Sessions 1 Manual Loads 0 Difficulty Rogue Special Mode None Game No. 218 Rogue 218 Adventurer 0 Explorer 0 Win Type - Total 15 Types 14/0/0/1/0/0/0/0/0 Lore% 72 Gallery% 83 Achievement% 79 Wizard Run 0 Options --------- Layout 1 ASCII 0 Keyboard 0 Movement Numpad Keybinds 0 Fullscreen 1 Font 24/Smallcaps Map View 50x35 Zoom Use 0% Tactical HUD 1 Map Filters NONE Filters NONE Steam 1 RUN: b3106536-2f8f-4077-b2a2-54b8c97595cf